bitfinex-derivatives/quotes_BTCF0:USTF0_20250922
["timestamp","ask_amount","ask_price","bid_price","bid_amount"]
[1758580674001,0.0515938,112720.0,112710.0,1.4404035]
[1758580674997,0.02743,112720.0,112710.0,1.4404035]
[1758580676101,0.05160626,112720.0,112710.0,1.4404035]
[1758580676804,0.02743,112720.0,112710.0,1.4404035]
[1758580677493,0.0054,112720.0,112710.0,1.74628719]
[1758580677702,0.005,112720.0,112710.0,1.92628719]
[1758580677908,0.0054,112720.0,112710.0,1.92628719]
[1758580678096,0.005,112720.0,112710.0,1.92628719]
[1758580678296,0.0054,112720.0,112710.0,1.92628719]
[1758580681208,0.0054,112720.0,112710.0,1.92624719]
[1758580681401,0.0054,112720.0,112710.0,1.12140719]
[1758580681605,0.0054,112720.0,112710.0,1.92624719]
[1758580681796,0.0054,112720.0,112710.0,1.6203635]
[1758580682002,0.0054,112720.0,112710.0,1.92624719]
[1758580682608,0.005,112720.0,112710.0,1.92624719]
[1758580682809,0.0054,112720.0,112710.0,1.92624719]
[1758580685206,0.0054,112720.0,112710.0,1.12140719]
[1758580685814,0.0940362,112720.0,112710.0,1.25168]
[1758580686013,0.13931521,112720.0,112710.0,1.340324]
[1758580686208,0.02649,112720.0,112710.0,1.340324]
[1758580686608,0.33237369,112720.0,112710.0,0.535524]
[1758580686817,0.33237369,112720.0,112710.0,1.340324]
[1758580687013,0.33237369,112720.0,112710.0,0.535524]
[1758580687316,0.44139764,112720.0,112710.0,1.289924]
[1758580687516,0.44139764,112720.0,112710.0,1.290324]
[1758580687816,0.69139764,112720.0,112710.0,0.485524]
[1758580688319,0.69139764,112720.0,112710.0,1.290324]
[1758580688520,0.69139764,112720.0,112710.0,0.485524]
[1758580689622,0.69139764,112720.0,112710.0,1.290404]
[1758580689823,0.69139764,112720.0,112710.0,0.485524]
[1758580690012,0.69139764,112720.0,112710.0,0.39688]
[1758580690213,0.72607535,112720.0,112710.0,0.0226]
[1758580691125,0.72607535,112720.0,112710.0,0.0222]
[1758580691327,0.72607535,112720.0,112710.0,0.0226]
[1758580692617,0.8793004,112720.0,112710.0,0.0226]
[1758580694624,1.2401004,112720.0,112710.0,0.0226]
[1758580694830,1.2401004,112720.0,112710.0,0.0014]
[1758580695130,1.2401004,112720.0,112710.0,0.001]
[1758580695330,1.2401004,112720.0,112710.0,0.0014]
[1758580695831,2.0481004,112720.0,112710.0,0.02393]
[1758580697639,1.2401004,112720.0,112710.0,0.02393]
[1758580697931,2.0479804,112720.0,112710.0,0.02393]
[1758580698339,0.42019166,112720.0,112710.0,0.03728]
[1758580698540,1.6872204,112720.0,112710.0,0.03728]
[1758580699134,1.6872204,112720.0,112710.0,0.02393]
[1758580699641,2.0480204,112720.0,112710.0,0.0014]
[1758580701439,2.27757477,112720.0,112710.0,0.0014]
[1758580701636,0.101624,112710.0,112700.0,0.0001]
[1758580701944,0.1239519,112700.0,112690.0,0.02202]
[1758580702141,1.41544835,112700.0,112690.0,0.02192]
[1758580702739,1.41444835,112700.0,112690.0,0.02192]
[1758580703341,1.41944835,112700.0,112690.0,0.02392]
[1758580703544,1.42044835,112700.0,112690.0,0.02392]
[1758580703742,0.61224835,112700.0,112690.0,0.02392]
[1758580704343,1.42036835,112700.0,112690.0,0.03727]
[1758580704845,1.39618064,112700.0,112690.0,0.03727]
[1758580705649,0.58806064,112700.0,112690.0,0.03727]
[1758580705946,1.39638064,112700.0,112690.0,0.03727]
[1758580707346,0.58806064,112700.0,112690.0,0.03727]
[1758580707547,1.39642064,112700.0,112690.0,0.03727]
[1758580708048,1.39642064,112700.0,112690.0,0.02392]
[1758580708350,1.39642064,112700.0,112690.0,0.0028]
[1758580708945,1.39642064,112700.0,112690.0,0.02548]
[1758580711351,0.58806064,112700.0,112690.0,0.02548]
[1758580711546,1.39726064,112700.0,112690.0,0.02468]
[1758580711746,1.39726064,112700.0,112690.0,0.02508]
[1758580713655,1.42127251,112700.0,112690.0,0.02508]
[1758580713854,1.42111251,112700.0,112690.0,0.02508]
[1758580718459,0.61207251,112700.0,112690.0,0.02508]
[1758580718854,1.42187251,112700.0,112690.0,0.02508]
[1758580721767,0.15296377,112700.0,112690.0,0.03802]
[1758580721958,1.42167251,112700.0,112690.0,0.1266798]
[1758580723966,1.42167251,112700.0,112690.0,0.4874798]
[1758580727373,1.42231251,112700.0,112690.0,0.38588]
[1758580727975,0.96320377,112700.0,112690.0,0.38588]
[1758580728168,1.42231251,112700.0,112690.0,0.38588]
[1758580735578,1.42231251,112700.0,112690.0,0.4745399]
[1758580737682,0.61207251,112700.0,112690.0,0.4745399]
[1758580737870,1.43015251,112700.0,112690.0,0.4745399]
[1758580738681,0.61207251,112700.0,112690.0,0.4745399]
[1758580738881,0.05253187,112700.0,112690.0,0.4874199]
[1758580739082,1.09996624,112700.0,112690.0,0.71697427]
[1758580739384,1.10036624,112700.0,112690.0,0.71697427]
[1758580739580,1.32992061,112700.0,112690.0,0.4874199]
[1758580740182,0.60069271,112700.0,112690.0,0.4874199]
[1758580740373,0.37113834,112700.0,112690.0,0.71697427]
[1758580741389,0.60069271,112700.0,112690.0,0.4874199]
[1758580741589,0.60069271,112700.0,112690.0,0.71697427]
[1758580743084,0.14158397,112700.0,112690.0,0.71697427]
[1758580743285,0.28248624,112700.0,112690.0,0.71697427]
[1758580744286,0.03041187,112700.0,112690.0,0.96697427]
[1758580744790,0.03001187,112700.0,112690.0,0.96697427]
[1758580744984,0.03041187,112700.0,112690.0,0.96697427]
[1758580748099,0.0064,112700.0,112690.0,1.23482408]
[1758580748287,0.006,112700.0,112690.0,2.05218408]
[1758580748487,0.0064,112700.0,112690.0,2.05218408]
[1758580748692,0.006,112700.0,112690.0,2.05218408]
[1758580748993,0.0064,112700.0,112690.0,2.05218408]
[1758580749493,0.0064,112700.0,112690.0,1.23482408]
[1758580749894,0.0064,112700.0,112690.0,2.05206408]
[1758580750294,0.0064,112700.0,112690.0,1.23482408]
[1758580750491,0.0064,112700.0,112690.0,2.05198408]
[1758580754200,0.0064,112700.0,112690.0,2.28153845]
[1758580754593,0.0064,112700.0,112690.0,2.12843269]
[1758580755210,0.0064,112700.0,112690.0,2.12771269]
[1758580756597,0.0064,112700.0,112690.0,1.31127269]
[1758580756800,0.0064,112700.0,112690.0,2.12763269]
[1758580757807,0.0064,112700.0,112690.0,1.82162971]
[1758580757998,0.0064,112700.0,112690.0,2.12763269]
[1758580763006,0.0064,112700.0,112690.0,1.87763269]
[1758580763205,0.006,112700.0,112690.0,1.87763269]
[1758580763402,0.0064,112700.0,112690.0,1.87763269]
[1758580765006,0.0064,112700.0,112690.0,1.87667269]
[1758580765203,0.33422298,112700.0,112690.0,1.57042971]
[1758580765508,0.02822,112700.0,112690.0,1.57042971]
[1758580765708,0.02822,112700.0,112690.0,1.87643269]
[1758580766302,0.0064,112700.0,112690.0,1.87643269]
[1758580766802,0.0064,112700.0,112690.0,1.06127269]
[1758580767011,0.0064,112700.0,112690.0,1.87643269]
[1758580767511,0.0064,112700.0,112690.0,1.06127269]
[1758580767805,0.0064,112700.0,112690.0,1.87619269]
[1758580776114,0.1168721,112700.0,112690.0,1.87503269]
[1758580779216,0.1168721,112700.0,112690.0,1.87459269]
[1758580780015,0.67287508,112700.0,112690.0,0.66660981]
[1758580780312,0.67287508,112700.0,112690.0,1.31858971]
[1758580781017,0.3668721,112700.0,112690.0,1.31858971]
[1758580781212,0.3664721,112700.0,112690.0,1.31858971]
[1758580781609,0.67247508,112700.0,112690.0,1.22992981]
[1758580781814,0.67287508,112700.0,112690.0,1.22992981]
[1758580782015,0.67287508,112700.0,112690.0,1.22984981]
[1758580783311,0.67287508,112700.0,112690.0,1.22960981]
[1758580783518,0.67287508,112700.0,112690.0,1.31826981]
[1758580783719,0.67287508,112700.0,112690.0,1.31786981]
[1758580783919,0.67287508,112700.0,112690.0,1.31826981]
[1758580784924,0.3668721,112700.0,112690.0,1.31826981]
[1758580785711,0.02782,112700.0,112690.0,1.62427279]
[1758580785910,0.02822,112700.0,112690.0,1.62427279]
[1758580786110,0.02822,112700.0,112690.0,1.90427279]
[1758580786618,0.0064,112700.0,112690.0,1.90427279]
[1758580787312,0.0064,112700.0,112690.0,1.59826981]
[1758580787513,0.0064,112700.0,112690.0,1.90427279]
[1758580788321,0.095052,112700.0,112690.0,1.90427279]
[1758580788519,0.0064,112700.0,112690.0,1.90427279]
[1758580790124,0.0064,112700.0,112690.0,1.59826981]
[1758580791325,0.095052,112700.0,112690.0,1.59826981]
[1758580792425,0.0064,112700.0,112690.0,1.59826981]
[1758580794626,0.006,112700.0,112690.0,1.90427279]
[1758580794827,0.0064,112700.0,112690.0,1.90427279]
[1758580798626,0.0064,112700.0,112690.0,1.59826981]
[1758580802325,0.0064,112700.0,112690.0,1.90427279]
[1758580805235,0.03028393,112700.0,112690.0,1.90427279]
[1758580805733,0.03028393,112700.0,112690.0,1.90255279]
[1758580806734,0.02988393,112700.0,112690.0,1.90255279]
[1758580806929,0.03028393,112700.0,112690.0,1.90255279]
[1758580809137,0.03028393,112700.0,112690.0,1.09127279]
[1758580809339,0.03028393,112700.0,112690.0,1.90215279]
[1758580810731,0.0064,112700.0,112690.0,1.90215279]
[1758580811329,0.0064,112700.0,112690.0,1.90211279]
[1758580814537,0.0064,112700.0,112690.0,1.8256385]
[1758580815236,0.0064,112700.0,112690.0,1.0147985]
[1758580815541,0.0064,112700.0,112690.0,1.8250385]
[1758580822143,0.0064,112700.0,112690.0,1.0147985]
[1758580822343,0.0064,112700.0,112690.0,1.8244385]
[1758580823347,0.0064,112700.0,112690.0,2.1852385]
[1758580826944,0.23592869,112700.0,112690.0,2.1852385]
[1758580827248,0.0064,112700.0,112690.0,2.1852385]
[1758580829753,0.23592869,112700.0,112690.0,2.1852385]
[1758580835455,0.23592869,112700.0,112690.0,2.1841185]
[1758580836049,0.23592869,112700.0,112690.0,1.3755985]
[1758580836447,0.23592869,112700.0,112690.0,2.1839985]
[1758580841559,0.23592869,112700.0,112690.0,1.3755985]
[1758580841766,0.57640948,112700.0,112690.0,0.94606971]
[1758580842057,0.57640948,112700.0,112690.0,1.75402971]
[1758580842257,0.57640948,112700.0,112690.0,1.9831584]
[1758580842457,0.34688079,112700.0,112690.0,1.9835584]
[1758580842658,0.25822869,112700.0,112690.0,2.2535584]
[1758580842862,0.34688079,112700.0,112690.0,2.2535584]
[1758580846265,0.34688079,112700.0,112690.0,1.4455984]
[1758580846562,0.34688079,112700.0,112690.0,2.2532784]
[1758580847153,0.34688079,112700.0,112690.0,1.4455984]
[1758580847454,0.57640948,112700.0,112690.0,2.2532784]
[1758580847653,0.82640948,112700.0,112690.0,0.75956]
[1758580847848,0.86308359,112700.0,112690.0,1.20644]
[1758580848060,0.88394745,112700.0,112690.0,1.20644]
[1758580848662,0.88394745,112700.0,112690.0,1.20604]
[1758580848857,0.88394745,112700.0,112690.0,1.20644]
[1758580849057,0.41211007,112700.0,112690.0,1.20644]
[1758580849262,0.87116745,112700.0,112690.0,1.20644]
[1758580851065,0.87116745,112700.0,112690.0,0.39876]
[1758580851365,0.88394745,112700.0,112690.0,0.39876]
[1758580851867,0.88394745,112700.0,112690.0,0.38588]
[1758580852767,0.88394745,112700.0,112690.0,0.02508]
[1758580853168,0.88394745,112700.0,112690.0,0.02468]
[1758580853369,0.88394745,112700.0,112690.0,0.02508]
[1758580859074,0.42489007,112700.0,112690.0,0.02508]
[1758580859271,0.88394745,112700.0,112690.0,0.02508]
[1758580861878,1.69210745,112700.0,112690.0,0.02508]
[1758580862278,1.69194745,112700.0,112690.0,0.02508]
[1758580863175,0.88394745,112700.0,112690.0,0.1137399]
[1758580863389,0.84727334,112700.0,112690.0,0.4879299]
[1758580863588,0.36774465,112700.0,112690.0,0.71745859]
[1758580864482,0.13821596,112700.0,112690.0,0.71745859]
[1758580864884,0.36774465,112700.0,112690.0,0.71745859]
[1758580866095,0.3915939,112700.0,112690.0,0.71745859]
[1758580867094,0.3029418,112700.0,112690.0,0.71745859]
[1758580867593,0.3692939,112700.0,112690.0,0.71745859]
[1758580867794,0.3917439,112700.0,112690.0,0.71745859]
[1758580871997,0.16221521,112700.0,112690.0,0.71745859]
[1758580872197,0.3917439,112700.0,112690.0,0.71745859]
[1758580872397,0.11890135,112700.0,112690.0,0.71745859]
[1758580872597,0.0064,112700.0,112690.0,1.53698728]
[1758580872792,0.006,112700.0,112690.0,1.0779299]
[1758580873095,0.0064,112700.0,112690.0,2.11561859]
[1758580874796,0.0064,112700.0,112690.0,2.1921238]
[1758580877995,0.0064,112700.0,112690.0,1.3839638]
[1758580878198,0.0064,112700.0,112690.0,2.1924038]
[1758580879493,0.0064,112700.0,112690.0,1.3839638]
[1758580879893,0.0064,112700.0,112690.0,2.1922838]
[1758580880699,0.0064,112700.0,112690.0,1.0779299]
[1758580880895,0.3352839,112700.0,112690.0,0.8279299]
[1758580881093,0.3352839,112700.0,112690.0,1.6361699]
[1758580881703,0.4239364,112700.0,112690.0,1.6361299]
[1758580882094,0.4239364,112700.0,112690.0,1.6356899]
[1758580882294,0.4239364,112700.0,112690.0,1.6360899]
[1758580885601,0.4239364,112700.0,112690.0,1.6356899]
[1758580886205,0.4239364,112700.0,112690.0,1.6360899]
[1758580888101,0.1179025,112700.0,112690.0,1.6360899]
[1758580892311,0.1420783,112700.0,112690.0,1.6360899]
[1758580892609,0.4481122,112700.0,112690.0,1.6360899]
[1758580893111,0.4239364,112700.0,112690.0,1.6360899]
[1758580893814,0.3352839,112700.0,112690.0,1.6360899]
[1758580894013,0.02925,112700.0,112690.0,1.6360899]
[1758580895012,0.05342915,112700.0,112690.0,1.6360899]
[1758580895611,0.14208315,112700.0,112690.0,1.6360899]
[1758580905529,0.14208315,112700.0,112690.0,1.2960899]
[1758580907231,0.117904,112700.0,112690.0,1.2960899]
[1758580907526,0.02925,112700.0,112690.0,1.2960899]
[1758580910929,0.05341969,112700.0,112690.0,1.2960899]
[1758580911128,0.02925,112700.0,112690.0,1.2960899]
[1758580911929,0.02925,112700.0,112690.0,1.6021238]
[1758580913131,0.02925,112700.0,112690.0,1.2960899]
[1758580922649,0.02925,112700.0,112690.0,0.4879299]
[1758580922849,0.02925,112700.0,112690.0,1.2955299]
[1758580926049,0.0064,112700.0,112690.0,1.8715638]
[1758580926249,0.0064,112700.0,112690.0,1.8815638]
[1758580927250,0.0064,112700.0,112690.0,1.6015638]
[1758580927451,0.0064,112700.0,112690.0,1.8915638]
[1758580927849,0.0064,112700.0,112690.0,1.8815638]
[1758580928057,0.0064,112700.0,112690.0,1.8915638]
[1758580928849,0.0064,112700.0,112690.0,1.8815638]
[1758580929855,0.0064,112700.0,112690.0,1.9115638]
[1758580930857,0.0064,112700.0,112690.0,1.6015638]
[1758580931057,0.0064,112700.0,112690.0,1.8615638]
[1758580931957,0.0064,112700.0,112690.0,1.6015638]
[1758580932160,0.0064,112700.0,112690.0,1.6015238]
[1758580933160,0.0064,112700.0,112690.0,0.7939638]
[1758580933458,0.0287,112700.0,112690.0,0.4879299]
[1758580933658,0.0287,112700.0,112690.0,1.2954499]
[1758580936448,0.0064,112700.0,112690.0,1.2954499]
[1758580936655,0.23595576,112700.0,112690.0,1.52500566]
[1758580940356,0.0064,112700.0,112690.0,1.76500566]
[1758580940660,0.006,112700.0,112690.0,2.24456142]
[1758580940859,0.0064,112700.0,112690.0,2.24456142]
[1758580941264,0.006,112700.0,112690.0,2.24456142]
[1758580941467,0.0064,112700.0,112690.0,2.24456142]
[1758580944663,0.006,112700.0,112690.0,2.24456142]
[1758580944863,0.18156413,112730.0,112720.0,0.03499]
[1758580945165,0.36671089,112730.0,112720.0,1.1469083]
[1758580945464,0.36671089,112730.0,112720.0,0.4844283]
[1758580945667,0.43843541,112730.0,112720.0,0.4844283]
[1758580945859,0.43883541,112730.0,112720.0,0.4844283]
[1758580946059,0.44483541,112730.0,112720.0,0.4844283]
[1758580950569,0.67439117,112730.0,112720.0,0.4844283]
[1758580953370,0.44483541,112730.0,112720.0,0.4844283]
[1758580958772,0.44394924,112730.0,112720.0,0.4844283]
[1758580969180,0.673505,112730.0,112720.0,0.4844283]
[1758580970383,0.673505,112730.0,112720.0,0.39579]
[1758580970581,0.936415,112730.0,112720.0,0.02109]
[1758580974288,1.743455,112730.0,112720.0,0.02109]
[1758580978891,0.1213283,112720.0,112710.0,0.487046]
[1758580979080,0.83412986,112720.0,112710.0,0.0236]
[1758580979387,1.44492986,112720.0,112710.0,0.0004]
[1758580979892,0.1234262,112710.0,112700.0,0.398]
[1758580980188,1.7920902,112710.0,112700.0,0.0232]
[1758580980384,1.4312902,112710.0,112700.0,0.0232]
[1758580980585,1.4272902,112710.0,112700.0,0.0232]
[1758580980987,1.4282902,112710.0,112700.0,0.0236]
[1758580981296,1.4332902,112710.0,112700.0,0.0272]
[1758580981592,1.4332902,112710.0,112700.0,0.0276]
[1758580982088,0.6263702,112710.0,112700.0,0.0276]
[1758580982294,1.4332902,112710.0,112700.0,0.0276]
[1758580983193,0.6263702,112710.0,112700.0,0.0276]
[1758580983382,1.4332902,112710.0,112700.0,0.0276]
[1758580983586,0.6263702,112710.0,112700.0,0.0276]
[1758580984491,1.4332902,112710.0,112700.0,0.0276]
[1758580984988,0.6263702,112710.0,112700.0,0.0276]
[1758580985294,1.4332902,112710.0,112700.0,0.0276]
[1758580985698,0.6263702,112710.0,112700.0,0.0276]
[1758580986297,1.4332902,112710.0,112700.0,0.0276]
[1758580987800,0.6263702,112710.0,112700.0,0.0276]
[1758580988201,1.4332902,112710.0,112700.0,0.0276]
[1758580988700,0.6263702,112710.0,112700.0,0.116254]
[1758580988901,1.19095444,112710.0,112700.0,0.489684]
[1758580989307,1.19135444,112710.0,112700.0,0.489684]
[1758580989708,1.4209102,112710.0,112700.0,0.489684]
[1758580989904,1.4209102,112710.0,112700.0,0.40103]
[1758580990205,1.4336902,112710.0,112700.0,0.40103]
[1758580991708,1.4336902,112710.0,112700.0,0.04023]
[1758580992011,1.4336902,112710.0,112700.0,0.0276]
[1758580996508,0.39721444,112710.0,112700.0,0.0276]
[1758580996714,1.28066118,112710.0,112700.0,0.0276]
[1758580997115,1.28066118,112710.0,112700.0,0.116254]
[1758581000413,0.47378118,112710.0,112700.0,0.116254]
[1758581000615,1.28066118,112710.0,112700.0,0.116254]
[1758581000814,1.28066118,112710.0,112700.0,0.129514]
[1758581002609,1.28062118,112710.0,112700.0,0.129514]
[1758581004112,0.37635498,112710.0,112700.0,0.129514]
[1758581004317,0.87703248,112710.0,112700.0,0.379514]
[1758581004718,0.06983248,112710.0,112700.0,0.379514]
[1758581004918,0.37635498,112710.0,112700.0,0.379514]
[1758581005421,0.37635498,112710.0,112700.0,0.740314]
[1758581008020,0.04823248,112710.0,112700.0,1.020314]
[1758581009523,0.0240982,112710.0,112700.0,1.020314]
[1758581009723,0.0236982,112710.0,112700.0,1.020314]
[1758581010022,0.0240982,112710.0,112700.0,1.020314]
[1758581010224,0.0236982,112710.0,112700.0,1.020314]
[1758581010823,0.0240982,112710.0,112700.0,1.020314]
[1758581012324,0.0240982,112710.0,112700.0,1.827034]
[1758581013621,0.0240982,112710.0,112700.0,1.020314]
[1758581013825,0.0240982,112710.0,112700.0,1.827034]
[1758581016723,0.0240982,112710.0,112700.0,2.1331565]
[1758581017923,0.0236982,112710.0,112700.0,2.1331565]
[1758581018124,0.0240982,112710.0,112700.0,2.1331565]
[1758581019332,0.0240982,112710.0,112700.0,1.8831565]
[1758581020034,0.0240982,112710.0,112700.0,1.577034]
[1758581020225,0.0240982,112710.0,112700.0,1.8831565]
[1758581020734,0.0240982,112710.0,112700.0,2.1331565]
[1758581021033,0.0240982,112710.0,112700.0,2.1330365]
[1758581021224,0.0236982,112710.0,112700.0,2.1330365]
[1758581021423,0.0240982,112710.0,112700.0,2.1330365]
[1758581022235,0.0240982,112710.0,112700.0,1.3264365]
[1758581022736,0.0240982,112710.0,112700.0,2.1329965]
[1758581023335,0.0240982,112710.0,112700.0,1.020314]
[1758581023535,0.0240982,112710.0,112700.0,1.826874]
[1758581023731,0.0240982,112710.0,112700.0,2.1329965]
[1758581026832,0.0064,112710.0,112700.0,2.1329965]
[1758581027038,0.09052124,112730.0,112720.0,0.1244783]
[1758581027240,0.08972124,112730.0,112720.0,2.3087208]
[1758581027531,0.09012124,112730.0,112720.0,2.3087208]
[1758581028126,0.09212124,112730.0,112720.0,2.0025983]
[1758581028538,0.09612124,112730.0,112720.0,2.0065983]
[1758581029138,0.11767124,112730.0,112720.0,1.9165583]
[1758581029438,0.42379374,112730.0,112720.0,1.6565583]
[1758581030030,0.42379374,112730.0,112720.0,1.6565183]
[1758581032232,0.42379374,112730.0,112720.0,0.8500783]
[1758581032440,0.51242414,112730.0,112720.0,1.6564783]
[1758581034044,0.51242414,112730.0,112720.0,1.6564383]
[1758581038751,0.51242414,112730.0,112720.0,0.8500783]
[1758581038951,0.51242414,112730.0,112720.0,1.6563583]
[1758581039656,0.77530414,112730.0,112720.0,0.8500783]
[1758581039854,0.77530414,112730.0,112720.0,1.6563583]
[1758581040153,0.76242414,112730.0,112720.0,0.8500783]
[1758581054361,0.78651267,112730.0,112720.0,0.8500783]
[1758581055973,0.69788227,112730.0,112720.0,0.8500783]
[1758581057474,0.78651267,112730.0,112720.0,0.8500783]
[1758581058474,0.14175977,112730.0,112720.0,0.8500783]
[1758581058774,0.3707906,112730.0,112720.0,1.33950913]
[1758581058962,0.3711906,112730.0,112720.0,1.33950913]
[1758581059167,0.3711906,112730.0,112720.0,1.07950913]
[1758581059371,0.3711906,112730.0,112720.0,1.88554913]
[1758581061973,0.3711906,112730.0,112720.0,1.6561183]
[1758581062170,0.14175977,112730.0,112720.0,1.88554913]
[1758581062376,0.3711906,112730.0,112720.0,1.88554913]
[1758581062777,0.3707906,112730.0,112720.0,1.88554913]
[1758581062969,0.3711906,112730.0,112720.0,1.88554913]
[1758581064774,0.3711906,112730.0,112720.0,1.07950913]
[1758581064975,0.3711906,112730.0,112720.0,1.88550913]
[1758581065679,0.3711906,112730.0,112720.0,1.07950913]
[1758581065881,0.3711906,112730.0,112720.0,1.88546913]
[1758581067377,0.35319388,112730.0,112720.0,1.88546913]
[1758581077284,0.35319388,112730.0,112720.0,1.16386913]
[1758581077489,0.35319388,112730.0,112720.0,1.52466913]
[1758581081695,0.35319388,112730.0,112720.0,0.71870913]
[1758581081885,0.35319388,112730.0,112720.0,1.2951183]
[1758581082084,0.44182418,112730.0,112720.0,1.2950783]
[1758581082695,0.44182418,112730.0,112720.0,0.4892783]
[1758581082890,0.44182418,112730.0,112720.0,1.2950783]
[1758581083489,0.44182418,112730.0,112720.0,0.4892783]
[1758581083691,0.67125501,112730.0,112720.0,1.2950383]
[1758581084696,0.68463501,112730.0,112720.0,0.40064]
[1758581086193,0.93463501,112730.0,112720.0,0.3873]
[1758581086397,0.93463501,112730.0,112720.0,0.004]
[1758581086899,0.93463501,112730.0,112720.0,0.02566]
[1758581087494,1.29543501,112730.0,112720.0,0.02566]
[1758581093195,2.10115501,112730.0,112720.0,0.02566]
[1758581095103,1.29543501,112730.0,112720.0,0.02566]
[1758581095300,2.10111501,112730.0,112720.0,0.02566]
[1758581096703,1.29543501,112730.0,112720.0,0.02566]
[1758581097002,2.10111501,112730.0,112720.0,0.02566]
[1758581097204,1.29543501,112730.0,112720.0,0.02566]
[1758581097504,2.10111501,112730.0,112720.0,0.02566]
[1758581097903,1.74031501,112730.0,112720.0,0.02566]
[1758581098104,2.10111501,112730.0,112720.0,0.02566]
[1758581100301,1.29543501,112730.0,112720.0,0.02566]
[1758581100506,1.74027501,112730.0,112720.0,0.02566]
[1758581102007,0.93463501,112730.0,112720.0,0.1142981]
[1758581102207,1.74027501,112730.0,112720.0,0.1142981]
[1758581104013,0.93463501,112730.0,112720.0,0.1142981]
[1758581104208,1.74027501,112730.0,112720.0,0.1142981]
[1758581105013,0.93463501,112730.0,112720.0,0.1142981]
[1758581105217,1.74027501,112730.0,112720.0,0.1142981]
[1758581106312,0.93463501,112730.0,112720.0,0.1142981]
[1758581106512,1.74023501,112730.0,112720.0,0.1142981]
[1758581108703,0.44182418,112730.0,112720.0,0.4881181]
[1758581108909,0.12376305,112730.0,112720.0,1.20754893]
[1758581109106,0.35279388,112730.0,112720.0,1.20754893]
[1758581109416,0.35319388,112730.0,112720.0,1.20754893]
[1758581110003,0.07812452,112730.0,112720.0,1.20754893]
[1758581110210,0.33120739,112730.0,112720.0,1.20754893]
[1758581110411,0.33160739,112730.0,112720.0,1.20754893]
[1758581111007,0.30755535,112730.0,112720.0,1.20754893]
[1758581111415,0.33161097,112730.0,112720.0,1.20754893]
[1758581112016,0.30755535,112730.0,112720.0,1.20754893]
[1758581112217,0.30755535,112730.0,112720.0,2.01310893]
[1758581113415,0.30755535,112730.0,112720.0,1.20754893]
[1758581113621,0.30755535,112730.0,112720.0,2.01306893]
[1758581113820,0.30755535,112730.0,112720.0,1.20754893]
[1758581114020,0.30715535,112730.0,112720.0,1.20754893]
[1758581114222,0.30755535,112730.0,112720.0,2.01306893]
[1758581115323,0.30755535,112730.0,112720.0,1.20754893]
[1758581115719,0.30755535,112730.0,112720.0,2.01302893]
[1758581116124,0.30755535,112730.0,112720.0,1.20754893]
[1758581116419,0.30755535,112730.0,112720.0,2.01302893]
[1758581116919,0.30755535,112730.0,112720.0,1.20754893]
[1758581117120,0.30755535,112730.0,112720.0,2.01302893]
[1758581117623,0.33064535,112730.0,112720.0,1.77298893]
[1758581117923,0.33064535,112730.0,112720.0,0.96754893]
[1758581118223,0.33064535,112730.0,112720.0,0.7381181]
[1758581118627,0.41927565,112730.0,112720.0,0.7381181]
[1758581118832,0.44334644,112730.0,112720.0,0.7381181]
[1758581119127,0.69058354,112730.0,112720.0,0.4881182]
[1758581120530,0.53771875,112730.0,112720.0,0.4881182]
[1758581121733,0.55098875,112730.0,112720.0,0.4881182]
[1758581126234,0.55098875,112730.0,112720.0,0.4750982]
[1758581127135,0.55098875,112730.0,112720.0,0.4884682]
[1758581131838,0.53771875,112730.0,112720.0,0.4884682]
[1758581142849,0.55063875,112730.0,112720.0,0.4884682]
[1758581143844,0.55063875,112730.0,112720.0,0.39983]
[1758581144051,0.80063875,112730.0,112720.0,0.02566]
[1758581144250,1.60575875,112730.0,112720.0,0.02566]
[1758581147549,0.80063875,112730.0,112720.0,0.02566]
[1758581148049,1.60575875,112730.0,112720.0,0.02566]
[1758581151849,1.60571875,112730.0,112720.0,0.02566]
[1758581152453,0.80063875,112730.0,112720.0,0.02566]
[1758581152753,1.60571875,112730.0,112720.0,0.02566]
[1758581152954,0.80063875,112730.0,112720.0,0.4884682]
[1758581153154,1.60571875,112730.0,112720.0,0.4884682]
[1758581153647,1.34279875,112730.0,112720.0,0.4884682]
[1758581153854,1.34279875,112730.0,112720.0,0.7384682]
[1758581154052,0.53731875,112730.0,112720.0,0.7384682]
[1758581154353,0.53771875,112730.0,112720.0,0.7384682]
[1758581154553,0.53731875,112730.0,112720.0,0.7384682]
[1758581154755,0.53771875,112730.0,112720.0,0.7384682]
[1758581157157,0.53731875,112730.0,112720.0,0.7384682]
[1758581157749,0.53771875,112730.0,112720.0,0.7384682]
[1758581158257,0.14309158,112730.0,112720.0,0.7384682]
[1758581159362,0.44908845,112730.0,112720.0,0.7384682]
[1758581160254,0.44908845,112730.0,112720.0,1.5435082]
[1758581161059,0.44908845,112730.0,112720.0,0.7384682]
[1758581161259,0.44908845,112730.0,112720.0,1.5434682]
[1758581161559,0.14309158,112730.0,112720.0,1.5434682]
[1758581164056,0.12000158,112730.0,112720.0,1.2934682]
[1758581164253,0.11960158,112730.0,112720.0,0.4884682]
[1758581164457,0.12000158,112730.0,112720.0,0.4884682]
[1758581164662,0.12000158,112730.0,112720.0,1.2934682]
[1758581166265,0.14119158,112730.0,112720.0,0.4884682]
[1758581166563,0.14119158,112730.0,112720.0,1.2934282]
[1758581167367,0.14119158,112730.0,112720.0,0.4884682]
[1758581167559,0.44718845,112730.0,112720.0,0.4884682]
[1758581167761,0.4472787,112730.0,112720.0,1.2934282]
[1758581169562,0.4472787,112730.0,112720.0,0.4884682]
[1758581169867,0.4472787,112730.0,112720.0,1.2934282]
[1758581173466,0.4472787,112730.0,112720.0,1.6542282]
[1758581174369,0.4472787,112730.0,112720.0,0.8492682]
[1758581174672,0.4472787,112730.0,112720.0,1.6541482]
[1758581174867,0.535909,112730.0,112720.0,1.6541482]
[1758581176672,0.4472787,112730.0,112720.0,1.6541482]
[1758581176870,0.14128183,112730.0,112720.0,1.6541482]
[1758581177170,0.4472787,112730.0,112720.0,1.6541482]
[1758581177369,0.535909,112730.0,112720.0,1.6541482]
[1758581180172,0.4472787,112730.0,112720.0,1.6541482]
[1758581180764,0.14128183,112730.0,112720.0,1.6541482]
[1758581182573,0.37071808,112730.0,112720.0,1.88358445]
[1758581184774,0.14128183,112730.0,112720.0,1.88358445]
[1758581184973,0.37071808,112730.0,112720.0,1.88358445]
[1758581187470,0.37071808,112730.0,112720.0,1.16198445]
[1758581187676,0.37071808,112730.0,112720.0,1.07870445]
[1758581187874,0.37071808,112730.0,112720.0,1.88346445]
[1758581192379,0.37071808,112730.0,112720.0,1.88342445]
[1758581193077,0.45934838,112730.0,112720.0,1.88342445]